fUST/lending_fUST_20250227
["ID","MTS","AMOUNT","RATE_DAILY","PERIOD"]
[354715916,1740641445040,-573.7114829,0.00046848,120]
[354715917,1740641445050,-500.0,0.00046848,31]
[354715918,1740641445059,-500.0,0.00046848,120]
[354715919,1740641445068,-507.21997742,0.00046848,31]
[354715920,1740641445077,-524.04928642,0.00046848,120]
[354715921,1740641445087,-151.0,0.00046848,120]
[354715922,1740641445096,-151.0,0.00046848,120]
[354715923,1740641445105,-358.29797238,0.00046849,120]
[354715924,1740641445115,-500.0,0.00046849,120]
[354715925,1740641445158,-500.0,0.00046849,120]
[354715926,1740641445169,-500.0,0.00046849,120]
[354715927,1740641445178,-500.0,0.00046849,120]
[354715928,1740641445187,-500.0,0.00046849,120]
[354715929,1740641445199,-500.0,0.00046849,120]
[354715930,1740641445210,-500.0,0.00046849,120]
[354715931,1740641445220,-500.0,0.00046849,120]
[354715932,1740641445230,-499.16680549,0.00046849,120]
[354715933,1740641445239,-500.0,0.00046849,120]
[354715934,1740641445251,-500.0,0.00046849,120]
[354715935,1740641445260,-500.0,0.00046849,120]
[354715936,1740641445269,-500.0,0.00046849,120]
[354715937,1740641445279,-500.0,0.00046849,120]
[354715938,1740641445289,-500.0,0.00046849,120]
[354715939,1740641445298,-352.66385049,0.00046849,120]
[354715941,1740641445307,-500.0,0.00046849,120]
[354715943,1740641445317,-500.0,0.00046849,120]
[354715945,1740641445326,-500.0,0.00046849,120]
[354715947,1740641445337,-500.0,0.00046849,120]
[354715949,1740641445346,-504.78094853,0.00046849,120]
[354715951,1740641445356,-500.0,0.00046849,120]
[354715954,1740641445365,-500.0,0.00046849,120]
[354715957,1740641445374,-500.0,0.00046849,120]
[354715959,1740641445384,-522.8,0.00046849,120]
[354715962,1740641445393,-500.0,0.00046849,120]
[354715965,1740641445403,-523.23,0.00046849,3]
[354715968,1740641445412,-500.0,0.00046849,120]
[354715971,1740641445422,-500.0,0.00046849,120]
[354715974,1740641445431,-500.0,0.00046849,120]
[354715977,1740641445442,-500.0,0.00046849,120]
[354715980,1740641445451,-500.0,0.00046849,120]
[354715982,1740641445460,-500.0,0.00046849,120]
[354715984,1740641445469,-1126.87,0.00046849,120]
[354715986,1740641445479,-500.0,0.00046849,120]
[354715988,1740641445490,-500.0,0.00046849,120]
[354715990,1740641445500,-500.0,0.00046849,120]
[354715992,1740641445511,-500.0,0.00046849,120]
[354715995,1740641445520,-500.0,0.00046849,120]
[354715997,1740641445529,-500.0,0.00046849,120]
[354715999,1740641445539,-500.0,0.00046849,2]
[354716001,1740641445549,-553.29,0.00046849,120]
[354716004,1740641445559,-500.0,0.00046849,120]
[354716006,1740641445568,-211.27590076,0.00046849,120]
[354716009,1740641445578,-963.1,0.00046849,120]
[354716011,1740641445587,-500.0,0.00046849,120]
[354716013,1740641445596,-500.0,0.00046849,120]
[354716015,1740641445606,-500.0,0.00046849,120]
[354716017,1740641445615,-347.85743595,0.00046849,120]
[354716019,1740641445625,-282.359519,0.00046849,120]
[354716021,1740641445635,-169.46000001,0.00046849,120]
[354716023,1740641445644,-500.0,0.00046849,120]
[354716024,1740641445655,-500.0,0.00046849,120]
[354716025,1740641445664,-500.0,0.00046849,120]
[354716026,1740641445673,-500.0,0.00046849,120]
[354716028,1740641445682,-500.0,0.00046849,120]
[354716030,1740641445692,-500.0,0.00046849,120]
[354716032,1740641445701,-500.0,0.00046849,120]
[354716034,1740641445710,-500.0,0.00046849,120]
[354716035,1740641445719,-500.0,0.00046849,120]
[354716036,1740641445729,-500.0,0.00046849,120]
[354716037,1740641445738,-500.0,0.00046849,120]
[354716039,1740641445747,-500.0,0.00046849,120]
[354716040,1740641445757,-500.0,0.00046849,120]
[354716041,1740641445766,-500.0,0.00046849,120]
[354716042,1740641445775,-500.0,0.00046849,120]
[354716043,1740641445784,-440.14248299,0.00046849,120]
[354716044,1740641445793,-500.0,0.00046849,120]
[354716045,1740641445802,-500.0,0.00046849,120]
[354716046,1740641445811,-500.0,0.00046849,120]
[354716047,1740641445820,-843.76,0.00046849,120]
[354716048,1740641445829,-290.57924227,0.00046849,120]
[354716049,1740641445839,-500.0,0.00046849,120]
[354716050,1740641445847,-151.0,0.00046849,120]
[354716051,1740641445856,-432.78175319,0.00046849,120]
[354716052,1740641445865,-500.0,0.00046849,120]
[354716053,1740641445874,-500.0,0.00046849,120]
[354716054,1740641445885,-500.0,0.00046849,120]
[354716055,1740641445895,-500.0,0.00046849,120]
[354716056,1740641445903,-500.0,0.00046849,120]
[354716057,1740641445913,-500.0,0.00046849,120]
[354716058,1740641445923,-503.3429473,0.00046849,120]
[354716059,1740641445933,-500.0,0.00046849,120]
[354716060,1740641445942,-500.0,0.00046849,120]
[354716061,1740641445951,-500.0,0.00046849,120]
[354716062,1740641445961,-500.0,0.00046849,120]
[354716063,1740641445971,-629.95,0.00046849,120]
[354716064,1740641445980,-500.0,0.00046849,120]
[354716065,1740641445990,-500.0,0.00046849,120]
[354716066,1740641445999,-666.15,0.00046849,120]
[354716067,1740641446009,-500.0,0.00046849,120]
[354716068,1740641446018,-500.0,0.00046849,120]
[354716069,1740641446027,-500.0,0.00046849,15]
[354716070,1740641446036,-500.0,0.00046849,120]
[354716071,1740641446045,-500.0,0.00046849,120]
[354716072,1740641446054,-504.17831705,0.00046849,120]
[354716073,1740641446064,-500.0,0.00046849,120]
[354716074,1740641446073,-500.0,0.00046849,120]
[354716075,1740641446082,-500.0,0.00046849,120]
[354716076,1740641446092,-500.0,0.00046849,120]
[354716078,1740641446101,-500.0,0.00046849,120]
[354716080,1740641446109,-500.0,0.00046849,120]
[354716082,1740641446119,-500.0,0.00046849,120]
[354716084,1740641446128,-500.0,0.00046849,120]
[354716086,1740641446136,-527.76,0.00046849,120]
[354716088,1740641446146,-500.0,0.00046849,120]
[354716090,1740641446155,-500.0,0.00046849,120]
[354716092,1740641446168,-802.63,0.00046849,120]
[354716094,1740641446177,-500.0,0.00046849,120]
[354716096,1740641446187,-500.0,0.00046849,120]
[354716098,1740641446196,-500.0,0.00046849,120]
[354716100,1740641446206,-500.0,0.00046849,120]
[354716102,1740641446215,-508.56,0.00046849,120]
[354716103,1740641446224,-500.0,0.00046849,120]
[354716105,1740641446235,-500.0,0.00046849,120]
[354716108,1740641446244,-500.0,0.00046849,120]
[354716110,1740641446253,-500.0,0.00046849,7]
[354716111,1740641446263,-500.0,0.00046849,120]
[354716113,1740641446272,-500.0,0.00046849,120]
[354716115,1740641446281,-976.45,0.00046849,120]
[354716116,1740641446291,-500.0,0.00046849,120]
[354716117,1740641446301,-500.0,0.00046849,120]
[354716118,1740641446310,-500.0,0.00046849,120]
[354716119,1740641446320,-151.0,0.00046849,120]
[354716120,1740641446330,-500.0,0.00046849,120]
[354716121,1740641446341,-500.0,0.00046849,120]
[354716122,1740641446350,-500.0,0.00046849,120]
[354716123,1740641446361,-500.0,0.00046849,120]
[354716124,1740641446370,-500.0,0.00046849,120]
[354716125,1740641446380,-538.33,0.00046849,120]
[354716126,1740641446390,-500.0,0.00046849,120]
[354716127,1740641446402,-153.80551771,0.00046849,120]
[354716128,1740641446411,-500.0,0.00046849,120]
[354716129,1740641446421,-151.0,0.00046849,120]
[354716130,1740641446430,-650.11,0.00046849,120]
[354716131,1740641446439,-702.96,0.00046849,120]
[354716132,1740641446450,-500.0,0.00046849,120]
[354716133,1740641446459,-151.0,0.00046849,120]
[354716134,1740641446469,-500.0,0.00046849,120]
[354716135,1740641446478,-500.0,0.00046849,120]
[354716136,1740641446490,-500.0,0.00046849,120]
[354716137,1740641446500,-500.0,0.00046849,120]
[354716138,1740641446510,-500.0,0.00046849,120]
[354716139,1740641446520,-423.1100184,0.00046849,120]
[354716140,1740641446528,-500.0,0.00046849,120]
[354716141,1740641446538,-500.0,0.00046849,120]
[354716142,1740641446547,-698.89,0.00046849,120]
[354716143,1740641446555,-500.0,0.00046849,120]
[354716144,1740641446565,-588.99,0.00046849,120]
[354716145,1740641446575,-500.0,0.00046849,120]
[354716146,1740641446584,-500.0,0.00046849,120]
[354716147,1740641446593,-500.0,0.00046849,120]
[354716148,1740641446603,-500.0,0.00046849,120]
[354716149,1740641446612,-223.954488,0.00046849,120]
[354716150,1740641446621,-223.954488,0.00046849,120]
[354716151,1740641446631,-223.954488,0.00046849,120]
[354716152,1740641446640,-1018.14,0.00046849,120]
[354716153,1740641446649,-223.954488,0.00046849,120]
[354716154,1740641446658,-500.0,0.00046849,120]
[354716155,1740641446668,-500.0,0.00046849,120]
[354716156,1740641446676,-500.0,0.00046849,120]
[354716157,1740641446686,-219.98977,0.00046849,120]
[354716158,1740641446697,-500.0,0.00046849,120]
[354716159,1740641446707,-500.0,0.00046849,120]
[354716160,1740641446718,-500.0,0.00046849,120]
[354716161,1740641446727,-772.41,0.00046849,120]
[354716162,1740641446737,-500.0,0.00046849,120]
[354716163,1740641446746,-500.0,0.00046849,120]
[354716164,1740641446755,-500.0,0.00046849,120]
[354716165,1740641446765,-500.0,0.00046849,120]
[354716166,1740641446775,-500.0,0.00046849,120]
[354716167,1740641446784,-536.08838508,0.00046849,120]
[354716168,1740641446793,-500.0,0.00046849,120]
[354716169,1740641446803,-500.0,0.00046849,120]
[354716170,1740641446813,-500.0,0.00046849,120]
[354716171,1740641446824,-500.0,0.00046849,120]
[354716172,1740641446834,-500.0,0.00046849,120]
[354716173,1740641446843,-500.0,0.00046849,120]
[354716174,1740641446853,-151.0,0.00046849,120]
[354716175,1740641446862,-500.0,0.00046849,120]
[354716176,1740641446872,-825.43,0.00046849,120]
[354716177,1740641446882,-500.0,0.00046849,120]
[354716178,1740641446892,-500.0,0.00046849,120]
[354716179,1740641446902,-500.0,0.00046849,120]
[354716180,1740641446911,-500.0,0.00046849,120]
[354716181,1740641446921,-500.0,0.00046849,120]
[354716182,1740641446930,-500.0,0.00046849,120]
[354716183,1740641446940,-500.0,0.00046849,120]
[354716184,1740641446950,-500.0,0.00046849,120]
[354716185,1740641446959,-500.0,0.00046849,120]
[354716186,1740641446969,-500.0,0.00046849,120]
[354716187,1740641446979,-500.0,0.00046849,120]
[354716188,1740641446989,-500.0,0.00046849,120]
[354716189,1740641446998,-500.0,0.00046849,120]
[354716190,1740641447007,-500.0,0.00046849,120]
[354716191,1740641447016,-500.0,0.00046849,120]
[354716192,1740641447025,-12713.15,0.00046849,120]
[354716193,1740641447035,-194.226419,0.00046849,120]
[354716194,1740641447044,-500.0,0.00046849,120]
[354716195,1740641447053,-613.35,0.00046849,120]
[354716196,1740641447063,-500.0,0.00046849,120]
[354716197,1740641447072,-1448.45,0.00046849,120]
[354716198,1740641447082,-500.0,0.00046849,120]
[354716199,1740641447091,-500.0,0.00046849,120]
[354716200,1740641447101,-500.0,0.00046849,120]
[354716201,1740641447110,-500.0,0.00046849,120]
[354716202,1740641447119,-500.0,0.00046849,120]
[354716203,1740641447129,-4366.58,0.00046849,120]
[354716204,1740641447138,-516.57,0.00046849,120]
[354716205,1740641447147,-500.0,0.00046849,120]
[354716206,1740641447156,-500.0,0.00046849,120]
[354716207,1740641447166,-4020.22,0.00046849,120]
[354716208,1740641447179,-505.50828998,0.00046849,120]
[354716209,1740641447189,-500.0,0.00046849,120]
[354716210,1740641447199,-575.15173286,0.00046849,120]
[354716211,1740641447209,-828.28,0.00046849,120]
[354716212,1740641447219,-858.62,0.00046849,120]
[354716213,1740641447228,-500.0,0.00046849,14]
[354716214,1740641447237,-500.0,0.00046849,120]
[354716215,1740641447247,-813.7,0.00046849,120]
[354716216,1740641447257,-548.48455298,0.00046849,120]
[354716217,1740641447267,-500.0,0.00046849,120]
[354716218,1740641447276,-5339.17,0.00046849,120]
[354716219,1740641447286,-10805.99,0.00046849,120]
[354716220,1740641447295,-500.0,0.00046849,120]
[354716221,1740641447305,-500.0,0.00046849,120]
[354716222,1740641447314,-1205.99,0.00046849,120]
[354716223,1740641447324,-1037.98,0.00046849,120]
[354716224,1740641447334,-51685.2,0.00046849,7]
[354716225,1740641447343,-500.0,0.00046849,120]
[354716226,1740641447352,-500.0,0.00046849,120]
[354716227,1740641447362,-2430.49,0.00046849,120]
[354716228,1740641447372,-500.0,0.00046849,120]
[354716229,1740641447381,-961.31,0.00046849,120]
[354716230,1740641447391,-1565.78,0.00046849,120]
[354716231,1740641447400,-500.0,0.00046849,120]
[354716232,1740641447410,-500.0,0.00046849,120]
[354716233,1740641447420,-500.0,0.00046849,120]
[354716234,1740641447431,-4928.25,0.00046849,120]
[354716235,1740641447441,-835.55,0.00046849,120]
[354716236,1740641447452,-151.0,0.00046849,120]
[354716237,1740641447462,-151.0,0.00046849,120]
[354716238,1740641447472,-500.0,0.00046849,120]
[354716239,1740641447482,-540.58,0.00046849,120]
[354716240,1740641447492,-500.0,0.00046849,120]
[354716241,1740641447503,-151.0,0.00046849,120]
[354716242,1740641447514,-151.0,0.00046849,120]
[354716243,1740641447524,-500.0,0.00046849,120]
[354716244,1740641447533,-500.0,0.00046849,120]
[354716245,1740641447543,-672.66,0.00046849,120]
[354716246,1740641447552,-500.0,0.00046849,120]
[354716247,1740641447562,-500.0,0.00046849,120]
[354716248,1740641447572,-1510.32,0.00046849,120]
[354716249,1740641447581,-505.5445518,0.00046849,120]
[354716250,1740641447591,-500.0,0.00046849,120]
[354716251,1740641447601,-500.0,0.00046849,30]
[354716252,1740641447611,-2312.33,0.00046849,120]
[354716253,1740641447620,-500.0,0.00046849,120]
[354716254,1740641447630,-500.0,0.00046849,120]
[354716255,1740641447640,-422.84857343,0.00046849,120]
[354716256,1740641447649,-151.0,0.00046849,120]
[354716257,1740641447659,-151.0,0.00046849,120]
[354716258,1740641447668,-500.0,0.00046849,120]
[354716259,1740641447678,-500.0,0.00046849,120]
[354716260,1740641447687,-956.22,0.00046849,120]
[354716261,1740641447697,-1000.0,0.00046849,2]
[354716262,1740641447707,-842.78,0.00046849,120]
[354716263,1740641447717,-500.0,0.00046849,120]
[354716264,1740641447726,-500.0,0.00046849,120]
[354716265,1740641447737,-1912.17,0.00046849,120]
[354716266,1740641447747,-500.0,0.00046849,120]
[354716267,1740641447756,-500.0,0.00046849,120]
[354716268,1740641447766,-1263.98,0.00046849,120]
[354716269,1740641447775,-500.0,0.00046849,120]
[354716270,1740641447785,-848.88,0.00046849,120]
[354716271,1740641447794,-500.0,0.00046849,120]
[354716272,1740641447803,-514.21,0.00046849,120]
[354716273,1740641447814,-151.0,0.00046849,120]
[354716274,1740641447824,-151.0,0.00046849,120]
[354716275,1740641447835,-503.43,0.00046849,120]
[354716276,1740641447845,-500.0,0.00046849,120]
[354716277,1740641447855,-151.0,0.00046849,110]
[354716278,1740641447864,-151.0,0.00046849,110]
[354716279,1740641447874,-500.0,0.00046849,120]
[354716280,1740641447883,-672.25,0.00046849,120]
[354716281,1740641447893,-521.72,0.00046849,120]
[354716282,1740641447902,-500.0,0.00046849,120]
[354716283,1740641447912,-500.0,0.00046849,120]
[354716284,1740641447921,-500.0,0.00046849,120]
[354716285,1740641447930,-1263.78,0.00046849,120]
[354716286,1740641447939,-500.0,0.00046849,120]
[354716287,1740641447949,-500.0,0.00046849,120]
[354716288,1740641447958,-1032.21,0.00046849,120]
[354716289,1740641447968,-500.0,0.00046849,120]
[354716290,1740641447977,-5.09874273,0.00046849,21]
[354716291,1740641448394,-580.78,0.00046575,120]
[354716292,1740641448404,-494.90125727,0.00046849,21]
[354716293,1740641448414,-500.0,0.00046849,120]
[354716294,1740641448423,-2806.26,0.00046849,120]
[354716295,1740641448433,-500.0,0.00046849,120]
[354716296,1740641448442,-500.08,0.00046849,120]
[354716297,1740641448454,-500.0,0.00046849,120]
[354716298,1740641448463,-500.0,0.00046849,120]
[354716299,1740641448474,-500.0,0.00046849,120]
[354716300,1740641448484,-500.0,0.00046849,120]
[354716301,1740641448494,-500.0,0.00046849,120]
[354716302,1740641448504,-500.0,0.00046849,120]
[354716303,1740641448514,-630.6,0.00046849,120]
[354716304,1740641448525,-500.0,0.00046849,120]
[354716305,1740641448535,-1016.19,0.00046849,120]
[354716306,1740641448545,-500.0,0.00046849,120]
[354716307,1740641448555,-500.0,0.00046849,120]
[354716308,1740641448565,-500.0,0.00046849,120]
[354716309,1740641448575,-500.0,0.00046849,120]
[354716310,1740641448585,-7097.45,0.00046849,6]
[354716311,1740641448595,-1317.53,0.00046849,120]
[354716312,1740641448605,-500.0,0.00046849,120]
[354716313,1740641448616,-532.15,0.00046849,120]
[354716314,1740641448626,-151.0,0.00046849,120]
[354716315,1740641448636,-463.04873227,0.00046849,120]
[354716316,1740641448646,-763.16,0.00046849,120]
[354716317,1740641448656,-500.0,0.00046849,120]
[354716318,1740641448666,-500.0,0.00046849,120]
[354716319,1740641448676,-528.11587061,0.00046849,120]
[354716320,1740641448686,-500.0,0.00046849,120]
[354716321,1740641448695,-500.0,0.00046849,120]
[354716322,1740641448705,-851.83,0.00046849,120]
[354716323,1740641448715,-500.0,0.00046849,120]
[354716324,1740641448725,-2709.78,0.00046849,120]
[354716325,1740641448735,-500.0,0.00046849,120]
[354716326,1740641448895,-1167.97,0.00046849,120]
[354716327,1740641448906,-1192.52,0.00046849,120]
[354716328,1740641448916,-580.78,0.00046849,120]
[354716329,1740641448925,-500.0,0.00046873,10]
[354716330,1740641448935,-500.0,0.00046873,10]
[354716331,1740641448946,-500.0,0.00046873,10]
[354716332,1740641448955,-200.0,0.00046873,10]
[354716333,1740641448964,-275.70442685,0.00046873,3]
[354716334,1740641448974,-500.0,0.00046873,10]
[354716335,1740641448983,-501.73391273,0.00046873,10]
[354716336,1740641448993,-500.0,0.00046873,10]
[354716337,1740641449002,-500.0,0.00046873,5]
[354716338,1740641449012,-501.34704873,0.00046873,10]
[354716339,1740641449021,-506.78090511,0.00046873,10]
[354716340,1740641449031,-500.0,0.00046873,10]
[354716341,1740641449041,-500.0,0.00046873,10]
[354716342,1740641449051,-500.0,0.00046873,10]
[354716343,1740641449060,-500.0,0.00046873,10]
[354716344,1740641449070,-501.73180647,0.00046873,10]
[354716345,1740641449079,-500.0,0.00046873,10]
[354716346,1740641449088,-385.55002971,0.00046873,10]
[354716347,1740641449098,-500.0,0.00046873,10]
[354716348,1740641449107,-500.0,0.00046873,10]
[354716349,1740641449116,-500.0,0.00046873,10]
[354716350,1740641449125,-500.2983,0.00046873,10]
[354716351,1740641449135,-221.6219975,0.00046981,4]
[354716352,1740641449146,-15051.04821446,0.00047,120]
[354716353,1740641508850,5000.0,0.0003,30]
[354716354,1740641516635,5000.0,0.0003,30]
[354716355,1740641525310,5000.0,0.0003,30]
[354716356,1740641533956,5000.0,0.0003,30]
[354716357,1740641538430,-150.0,0.00044749,2]
[354716358,1740641541804,150.0,0.00045,120]
[354716359,1740641549738,5000.0,0.0003,10]
[354716360,1740641565786,5000.0,0.0003,10]
[354716361,1740641580771,5000.0,0.0003,10]
[354716362,1740641595706,5000.0,0.0003,10]
[354716363,1740641610934,1096.53112198,0.0003,10]
[354716364,1740641733125,5000.0,0.0003,10]
[354716365,1740641748787,1150.65343936,0.0003,10]
[354716371,1740642391135,-405.4260184,0.00045,120]
[354716372,1740642391157,-86.42407805,0.00045,120]
[354716419,1740642632065,-282.4531427,0.00041876,2]
[354716421,1740642632075,-288.81773836,0.00045,120]
[354716423,1740642632087,-279.97418359,0.00045,120]
[354716424,1740642632096,-209.62712669,0.00045,120]
[354716431,1740642632154,-321.06130044,0.00045,120]
[354716433,1740642632166,-2350.0,0.00045,120]
[354716440,1740642632232,-899.78,0.00045,120]
[354716442,1740642632244,-1002.39397011,0.00045,120]
[354716466,1740642637997,-32233.54116811,0.00045,120]
[354716468,1740642638006,-14517.81102413,0.00045,120]
[354716470,1740642638016,-5000.0,0.00045,120]
[354716472,1740642638025,-5000.0,0.00045,120]
[354716474,1740642638035,-812.00916936,0.00046399,120]
[354716476,1740642638045,-173.17321098,0.00046399,2]
[354716478,1740642638054,-173.17321096,0.000464,2]
[354716480,1740642638064,-2128.19552176,0.000464,28]
[354716482,1740642638074,-173.17321096,0.000464,2]
[354716484,1740642638084,-502.96921869,0.00046473,10]
[354716486,1740642638094,-500.0,0.00046473,7]
[354716487,1740642638104,-500.0,0.00046473,10]
[354716489,1740642638113,-500.0,0.00046473,10]
[354716492,1740642638123,-14381.07,0.00046499,120]
[354716494,1740642638132,-500.0,0.00046499,120]
[354716496,1740642638141,-182.44034233,0.00046499,31]
[354716498,1740642638151,-500.0,0.00046499,120]
[354716499,1740642638160,-620.59522604,0.00046499,2]
[354716501,1740642638170,-339.72006899,0.00046499,120]
[354716504,1740642638182,-500.0,0.00046499,120]
[354716506,1740642638191,-500.0,0.00046499,120]
[354716508,1740642638200,-531.59541949,0.00046499,120]
[354716510,1740642638210,-280701.82872733,0.000465,3]
[354716512,1740642638219,-151.0,0.000465,120]
[354716514,1740642638228,-151.0,0.000465,120]
[354716516,1740642638237,-151.0,0.000465,120]
[354716519,1740642638247,-151.0,0.000465,120]
[354716521,1740642638256,-151.0,0.000465,120]
[354716524,1740642638266,-151.0,0.000465,120]
[354716527,1740642638275,-151.0,0.000465,120]
[354716529,1740642638284,-151.0,0.000465,120]
[354716531,1740642638294,-151.0,0.000465,120]
[354716533,1740642638304,-151.0,0.000465,120]
[354716535,1740642638313,-151.0,0.000465,120]
[354716537,1740642638322,-151.0,0.000465,120]
[354716539,1740642638331,-151.0,0.000465,120]
[354716541,1740642638340,-151.0,0.000465,120]
[354716543,1740642638350,-151.0,0.000465,120]
[354716545,1740642638359,-151.0,0.000465,120]
[354716547,1740642638368,-151.0,0.000465,120]
[354716549,1740642638378,-151.0,0.000465,120]
[354716551,1740642638387,-151.0,0.000465,120]
[354716553,1740642638398,-151.0,0.000465,120]
[354716555,1740642638407,-151.0,0.000465,120]
[354716556,1740642638417,-151.0,0.000465,120]
[354716558,1740642638427,-221.695166,0.000465,120]
[354716559,1740642638436,-19607.61712864,0.000465,3]
[354716560,1740642638445,-200.0,0.00046573,10]
[354716561,1740642638454,-500.0,0.00046573,10]
[354716562,1740642638463,-500.0,0.00046573,10]
[354716563,1740642638472,-275.70442685,0.00046573,3]
[354716564,1740642638481,-500.0,0.00046573,10]
[354716565,1740642638490,-500.0,0.00046573,10]
[354716566,1740642638499,-501.73391273,0.00046573,10]
[354716567,1740642638508,-506.78090511,0.00046573,10]
[354716568,1740642638518,-500.0,0.00046573,10]
[354716569,1740642638527,-500.0,0.00046573,10]
[354716570,1740642638537,-501.34704873,0.00046573,10]
[354716571,1740642638549,-500.0,0.00046573,5]
[354716572,1740642638558,-500.0,0.00046573,10]
[354716573,1740642638568,-500.0,0.00046573,10]
[354716574,1740642638578,-500.0,0.00046573,10]
[354716575,1740642638589,-501.73180647,0.00046573,10]
[354716576,1740642638598,-500.0,0.00046573,10]
[354716577,1740642638607,-500.0,0.00046573,10]
[354716578,1740642638618,-500.2983,0.00046573,10]
[354716579,1740642638627,-500.0,0.00046573,10]
[354716580,1740642638637,-385.55002971,0.00046573,10]
[354716581,1740642638646,-502.69278621,0.00046575,120]
[354716582,1740642638655,-500.0,0.00046575,120]
[354716583,1740642638665,-500.0,0.00046575,120]
[354716584,1740642638675,-500.0,0.00046575,120]
[354716585,1740642638684,-500.0,0.00046575,120]
[354716586,1740642638694,-500.0,0.00046575,120]
[354716587,1740642638703,-500.0,0.00046575,120]
[354716588,1740642638713,-500.0,0.00046575,120]
[354716589,1740642638722,-500.0,0.00046575,120]
[354716590,1740642638731,-500.0,0.00046575,120]
[354716591,1740642638741,-416.63486096,0.00046575,120]
[354716592,1740642638750,-500.0,0.00046575,120]
[354716593,1740642638759,-500.0,0.00046575,120]
[354716594,1740642638769,-500.0,0.00046575,120]
[354716595,1740642638779,-500.0,0.00046575,120]
[354716596,1740642638788,-500.0,0.00046575,120]
[354716597,1740642638797,-500.0,0.00046575,120]
[354716598,1740642638807,-500.0,0.00046575,120]
[354716599,1740642638817,-500.0,0.00046575,120]
[354716600,1740642638826,-513.09,0.00046575,120]
[354716601,1740642638836,-500.0,0.00046575,120]
[354716602,1740642638846,-574.71,0.00046575,120]
[354716603,1740642638855,-500.0,0.00046575,120]
[354716604,1740642638864,-500.0,0.00046575,120]
[354716605,1740642638874,-500.0,0.00046575,120]
[354716606,1740642638884,-500.0,0.00046575,7]
[354716607,1740642638893,-500.0,0.00046575,120]
[354716608,1740642638904,-500.0,0.00046575,120]
[354716609,1740642639084,-500.0,0.00046575,120]
[354716610,1740642639096,-500.0,0.00046575,120]
[354716611,1740642639106,-500.0,0.00046575,120]
[354716612,1740642639116,-500.0,0.00046575,120]
[354716613,1740642639126,-500.0,0.00046575,120]
[354716614,1740642639138,-500.0,0.00046575,120]
[354716615,1740642639149,-500.0,0.00046575,120]
[354716616,1740642639160,-500.0,0.00046575,120]
[354716617,1740642639169,-500.0,0.00046575,120]
[354716618,1740642639180,-500.0,0.00046575,120]
[354716619,1740642639190,-500.0,0.00046575,120]
[354716620,1740642639199,-297.98,0.00046575,120]
[354716621,1740642639208,-500.0,0.00046575,120]
[354716622,1740642639218,-500.0,0.00046575,120]
[354716623,1740642639227,-500.0,0.00046575,120]
[354716624,1740642639236,-500.0,0.00046575,120]